[Event "Early-Titled-Tuesday-Blitz-July-09-2024"]
[Site "Chess.com"]
[Date "2024.07.09"]
[Round "3"]
[White "Alonmindlin"]
[Black "Zhigalko_Sergei"]
[Result "0-1"]
[WhiteElo "2710"]
[BlackElo "2931"]
[TimeControl "180+1"]
[EndTime "8:30:08 PDT"]
[Termination "Zhigalko_Sergei won by resignation"]

1. d4 {[%clk 0:03:00.9]} 1... Nf6 {[%clk 0:02:59.5]} 2. c4 {[%clk 0:03:00.9]}
2... e6 {[%clk 0:02:59.9]} 3. Nf3 {[%clk 0:02:59.5]} 3... b6 {[%clk 0:03:00.1]}
4. Nc3 {[%clk 0:02:59.5]} 4... Bb4 {[%clk 0:03:00]} 5. e3 {[%clk 0:02:59.1]}
5... O-O {[%clk 0:02:59.6]} 6. Bd3 {[%clk 0:02:59.2]} 6... Bb7 {[%clk
0:02:59.7]} 7. O-O {[%clk 0:02:59]} 7... d5 {[%clk 0:03:00]} 8. cxd5 {[%clk
0:02:59.1]} 8... exd5 {[%clk 0:03:00.3]} 9. Qc2 {[%clk 0:02:59.5]} 9... Re8
{[%clk 0:02:55]} 10. a3 {[%clk 0:02:53.6]} 10... Bf8 {[%clk 0:02:53.8]} 11. b4
{[%clk 0:02:53.9]} 11... Nbd7 {[%clk 0:02:51.8]} 12. b5 {[%clk 0:02:52.3]} 12...
a6 {[%clk 0:02:39]} 13. bxa6 {[%clk 0:02:45.9]} 13... Bxa6 {[%clk 0:02:39.1]}
14. Bxa6 {[%clk 0:02:45.4]} 14... Rxa6 {[%clk 0:02:39.6]} 15. Bb2 {[%clk
0:02:42.4]} 15... c6 {[%clk 0:02:29.7]} 16. Na2 {[%clk 0:02:30]} 16... c5 {[%clk
0:02:18]} 17. dxc5 {[%clk 0:02:26.9]} 17... bxc5 {[%clk 0:02:17.4]} 18. Rfd1
{[%clk 0:02:21.6]} 18... Qa8 {[%clk 0:02:14.4]} 19. Nc3 {[%clk 0:02:17]} 19...
h6 {[%clk 0:02:04]} 20. a4 {[%clk 0:02:07.8]} 20... Qc6 {[%clk 0:01:49.3]} 21.
Nb5 {[%clk 0:02:04.6]} 21... Rea8 {[%clk 0:01:46.9]} 22. h3 {[%clk 0:01:54.4]}
22... Ne4 {[%clk 0:01:22.3]} 23. Nd2 {[%clk 0:01:30]} 23... Nxd2 {[%clk
0:01:15.7]} 24. Qxd2 {[%clk 0:01:21.2]} 24... Nb6 {[%clk 0:01:14.3]} 25. Be5
{[%clk 0:00:59]} 25... Rxa4 {[%clk 0:00:39.3]} 26. Rxa4 {[%clk 0:00:45.6]} 26...
Rxa4 {[%clk 0:00:31.4]} 27. Nc3 {[%clk 0:00:45.8]} 27... Ra8 {[%clk 0:00:17.7]}
28. Nxd5 {[%clk 0:00:41.1]} 28... Nxd5 {[%clk 0:00:11.5]} 29. Qxd5 {[%clk
0:00:40.7]} 29... Qxd5 {[%clk 0:00:11.9]} 30. Rxd5 {[%clk 0:00:41.6]} 30... f6
{[%clk 0:00:11.3]} 31. Bc7 {[%clk 0:00:25.7]} 31... Kf7 {[%clk 0:00:07.8]} 32.
Rd8 {[%clk 0:00:23.3]} 32... Rxd8 {[%clk 0:00:03.8]} 33. Bxd8 {[%clk 0:00:23.7]}
33... Ke6 {[%clk 0:00:04.1]} 34. Kf1 {[%clk 0:00:22.7]} 34... Kd5 {[%clk
0:00:04.1]} 35. Ke2 {[%clk 0:00:22.7]} 35... Kc4 {[%clk 0:00:04.6]} 36. g4
{[%clk 0:00:20.6]} 36... Kb3 {[%clk 0:00:04.3]} 37. Kd2 {[%clk 0:00:20.1]} 37...
c4 {[%clk 0:00:04.4]} 38. Ba5 {[%clk 0:00:19.6]} 38... Bd6 {[%clk 0:00:02.4]}
39. f4 {[%clk 0:00:19.4]} 39... Bc5 {[%clk 0:00:02.4]} 40. e4 {[%clk 0:00:19.6]}
40... Bd4 {[%clk 0:00:02.6]} 41. h4 {[%clk 0:00:17.7]} 41... Bb2 {[%clk
0:00:02.7]} 42. g5 {[%clk 0:00:16.4]} 42... fxg5 {[%clk 0:00:02.8]} 43. hxg5
{[%clk 0:00:17.3]} 43... hxg5 {[%clk 0:00:03.4]} 44. fxg5 {[%clk 0:00:16.7]}
44... c3+ {[%clk 0:00:03.7]} 45. Kd3 {[%clk 0:00:17.1]} 45... c2 {[%clk
0:00:04.2]} 46. Bd2 {[%clk 0:00:17.7]} 46... c1=Q {[%clk 0:00:04.7]} 47. Bxc1
{[%clk 0:00:18.3]} 47... Bxc1 {[%clk 0:00:05.6]} 48. g6 {[%clk 0:00:18.9]} 48...
Bb2 {[%clk 0:00:06.2]} 49. Ke3 {[%clk 0:00:18.8]} 49... Kc4 {[%clk 0:00:06.6]}
50. Kf4 {[%clk 0:00:19.7]} 50... Kc5 {[%clk 0:00:05.6]} 51. Kf5 {[%clk
0:00:19.3]} 51... Kd6 {[%clk 0:00:06]} 0-1

[Event "Early-Titled-Tuesday-Blitz-July-09-2024"]
[Site "Chess.com"]
[Date "2024.07.09"]
[Round "3"]
[White "MikeSailer"]
[Black "Gnechko_Ruslan"]
[Result "1/2-1/2"]
[WhiteElo "2099"]
[BlackElo "2529"]
[TimeControl "180+1"]
[EndTime "8:30:09 PDT"]
[Termination "Game drawn - insufficient material"]

1. d4 {[%clk 0:02:59.9]} 1... Nf6 {[%clk 0:03:00.2]} 2. Nf3 {[%clk 0:03:00.2]}
2... g6 {[%clk 0:03:00.5]} 3. Bf4 {[%clk 0:03:00.9]} 3... Bg7 {[%clk 0:03:00.6]}
4. e3 {[%clk 0:03:01.7]} 4... O-O {[%clk 0:03:01.2]} 5. Be2 {[%clk 0:03:02.4]}
5... d5 {[%clk 0:03:01.5]} 6. O-O {[%clk 0:03:02.8]} 6... c5 {[%clk 0:03:02.2]}
7. h3 {[%clk 0:03:03.1]} 7... Nc6 {[%clk 0:03:02.5]} 8. c3 {[%clk 0:03:03.5]}
8... b6 {[%clk 0:03:02.8]} 9. Nbd2 {[%clk 0:03:03.8]} 9... Bb7 {[%clk
0:03:03.4]} 10. Ne5 {[%clk 0:03:03.4]} 10... Nd7 {[%clk 0:03:03]} 11. Nxc6
{[%clk 0:03:01.2]} 11... Bxc6 {[%clk 0:03:03.9]} 12. a3 {[%clk 0:02:59.3]} 12...
e5 {[%clk 0:03:03.6]} 13. Bh2 {[%clk 0:02:59.1]} 13... e4 {[%clk 0:02:56.8]} 14.
b4 {[%clk 0:02:40.6]} 14... Re8 {[%clk 0:02:49.8]} 15. bxc5 {[%clk 0:02:29.2]}
15... bxc5 {[%clk 0:02:49.7]} 16. Rb1 {[%clk 0:02:28.9]} 16... Qa5 {[%clk
0:02:40.8]} 17. Qc1 {[%clk 0:02:26.7]} 17... cxd4 {[%clk 0:02:34.5]} 18. cxd4
{[%clk 0:02:22.9]} 18... Rac8 {[%clk 0:02:35.1]} 19. Nb3 {[%clk 0:02:19.8]}
19... Qd8 {[%clk 0:02:21.6]} 20. Qb2 {[%clk 0:02:08.9]} 20... Ba4 {[%clk
0:02:19.1]} 21. Rfc1 {[%clk 0:02:06.3]} 21... Rxc1+ {[%clk 0:02:05.2]} 22. Qxc1
{[%clk 0:01:59.4]} 22... Bf8 {[%clk 0:01:40.7]} 23. Nc5 {[%clk 0:01:52.3]} 23...
Nxc5 {[%clk 0:01:35.3]} 24. dxc5 {[%clk 0:01:51.2]} 24... Qc8 {[%clk 0:01:13.3]}
25. Bb5 {[%clk 0:01:39.9]} 25... Bxb5 {[%clk 0:01:09.4]} 26. Rxb5 {[%clk
0:01:39.3]} 26... Qa6 {[%clk 0:01:04.7]} 27. Qb2 {[%clk 0:01:32]} 27... Rc8
{[%clk 0:01:02.5]} 28. Qb4 {[%clk 0:01:16.9]} 28... Qc6 {[%clk 0:00:58.8]} 29.
Bd6 {[%clk 0:01:13.5]} 29... Bxd6 {[%clk 0:00:36.4]} 30. cxd6 {[%clk 0:01:13.2]}
30... a5 {[%clk 0:00:30.5]} 31. Qxa5 {[%clk 0:01:00.9]} 31... Qxd6 {[%clk
0:00:29.1]} 32. Rb1 {[%clk 0:00:39.2]} 32... d4 {[%clk 0:00:27.9]} 33. exd4
{[%clk 0:00:38.7]} 33... Qxd4 {[%clk 0:00:27.7]} 34. Qb4 {[%clk 0:00:36.1]}
34... Qd3 {[%clk 0:00:24]} 35. a4 {[%clk 0:00:30.1]} 35... e3 {[%clk 0:00:23.9]}
36. fxe3 {[%clk 0:00:30.1]} 36... Qxe3+ {[%clk 0:00:24.8]} 37. Kh1 {[%clk
0:00:30.6]} 37... h5 {[%clk 0:00:22.2]} 38. a5 {[%clk 0:00:28.9]} 38... Ra8
{[%clk 0:00:20.3]} 39. Qb6 {[%clk 0:00:27.5]} 39... Qxb6 {[%clk 0:00:19.1]} 40.
axb6 {[%clk 0:00:27.1]} 40... Rb8 {[%clk 0:00:19.6]} 41. Kg1 {[%clk 0:00:25]}
41... Kf8 {[%clk 0:00:19.8]} 42. Kf2 {[%clk 0:00:25.7]} 42... Ke7 {[%clk
0:00:20.7]} 43. Ke3 {[%clk 0:00:26.3]} 43... Kd6 {[%clk 0:00:21.4]} 44. Ke4
{[%clk 0:00:26.8]} 44... f6 {[%clk 0:00:21.4]} 45. g4 {[%clk 0:00:25.3]} 45...
hxg4 {[%clk 0:00:21.2]} 46. hxg4 {[%clk 0:00:25.9]} 46... Kc6 {[%clk 0:00:21.8]}
47. Rc1+ {[%clk 0:00:13.6]} 47... Kd6 {[%clk 0:00:19.9]} 48. Rb1 {[%clk
0:00:13.2]} 48... f5+ {[%clk 0:00:17.8]} 49. gxf5 {[%clk 0:00:13.2]} 49... gxf5+
{[%clk 0:00:18.7]} 50. Kxf5 {[%clk 0:00:13]} 50... Kc6 {[%clk 0:00:19.1]} 51.
Rc1+ {[%clk 0:00:11.3]} 51... Kxb6 {[%clk 0:00:17.4]} 52. Rb1+ {[%clk
0:00:11.6]} 52... Kc7 {[%clk 0:00:17.8]} 53. Rxb8 {[%clk 0:00:11.9]} 53... Kxb8
{[%clk 0:00:17.7]} 1/2-1/2

[Event "Early-Titled-Tuesday-Blitz-July-09-2024"]
[Site "Chess.com"]
[Date "2024.07.09"]
[Round "3"]
[White "michaelskie11"]
[Black "djano"]
[Result "1/2-1/2"]
[WhiteElo "2390"]
[BlackElo "2600"]
[TimeControl "180+1"]
[EndTime "8:30:11 PDT"]
[Termination "Game drawn by repetition"]

1. d4 {[%clk 0:03:00.9]} 1... Nf6 {[%clk 0:02:57.8]} 2. Nc3 {[%clk 0:03:00.4]}
2... d5 {[%clk 0:02:55.7]} 3. Bf4 {[%clk 0:03:00.6]} 3... a6 {[%clk 0:02:55.1]}
4. e3 {[%clk 0:03:00.8]} 4... c5 {[%clk 0:02:54.9]} 5. dxc5 {[%clk 0:02:59.3]}
5... Nc6 {[%clk 0:02:51.4]} 6. Nf3 {[%clk 0:02:59.4]} 6... Bg4 {[%clk
0:02:48.5]} 7. Be2 {[%clk 0:02:58.9]} 7... Bxf3 {[%clk 0:02:46.9]} 8. Bxf3
{[%clk 0:02:58.7]} 8... e6 {[%clk 0:02:47.5]} 9. Na4 {[%clk 0:02:57.5]} 9...
Bxc5 {[%clk 0:02:43.1]} 10. Nxc5 {[%clk 0:02:56.9]} 10... Qa5+ {[%clk
0:02:43.8]} 11. c3 {[%clk 0:02:57.7]} 11... Qxc5 {[%clk 0:02:44.2]} 12. O-O
{[%clk 0:02:58.4]} 12... O-O {[%clk 0:02:44.1]} 13. Qb3 {[%clk 0:02:51.1]} 13...
b5 {[%clk 0:02:42.7]} 14. Rfd1 {[%clk 0:02:49.8]} 14... Rfe8 {[%clk 0:02:35.9]}
15. a4 {[%clk 0:02:43.2]} 15... h6 {[%clk 0:02:32.6]} 16. axb5 {[%clk
0:02:40.5]} 16... axb5 {[%clk 0:02:33.5]} 17. Rxa8 {[%clk 0:02:36.6]} 17... Rxa8
{[%clk 0:02:34.4]} 18. h3 {[%clk 0:02:35.2]} 18... Qc4 {[%clk 0:02:12.2]} 19.
Qc2 {[%clk 0:02:27.4]} 19... Ra2 {[%clk 0:01:59.8]} 20. Be2 {[%clk 0:02:23.9]}
20... Qa4 {[%clk 0:01:59.9]} 21. Qb1 {[%clk 0:01:52.6]} 21... Qb3 {[%clk
0:01:46.1]} 22. Rd2 {[%clk 0:01:51.9]} 22... Ne4 {[%clk 0:01:45]} 23. Bd1 {[%clk
0:01:24.5]} 23... Qc4 {[%clk 0:01:35.2]} 24. Re2 {[%clk 0:01:02.3]} 24... Nxc3
{[%clk 0:01:25.8]} 25. bxc3 {[%clk 0:01:02.1]} 25... Rxe2 {[%clk 0:01:26.7]} 26.
Bxe2 {[%clk 0:01:02.5]} 26... Qxe2 {[%clk 0:01:27.5]} 27. Qa1 {[%clk 0:00:59.7]}
27... Qc4 {[%clk 0:01:21.3]} 28. Qa8+ {[%clk 0:00:58.4]} 28... Kh7 {[%clk
0:01:21.7]} 29. Qe8 {[%clk 0:00:56.4]} 29... Qxc3 {[%clk 0:01:09.1]} 30. Qxf7
{[%clk 0:00:54.4]} 30... Qf6 {[%clk 0:01:06.9]} 31. Qb7 {[%clk 0:00:53.1]} 31...
e5 {[%clk 0:01:06.5]} 32. Bg3 {[%clk 0:00:51.1]} 32... b4 {[%clk 0:01:06.9]} 33.
Qb5 {[%clk 0:00:50]} 33... Qe6 {[%clk 0:01:01.4]} 34. h4 {[%clk 0:00:47.3]}
34... h5 {[%clk 0:01:00.9]} 35. Kh2 {[%clk 0:00:36.4]} 35... Kg6 {[%clk
0:00:57.2]} 36. Qd3+ {[%clk 0:00:35.9]} 36... e4 {[%clk 0:00:57]} 37. Qb5 {[%clk
0:00:35.8]} 37... Kf7 {[%clk 0:00:50.8]} 38. Qb7+ {[%clk 0:00:35.4]} 38... Kg8
{[%clk 0:00:51]} 39. Qa8+ {[%clk 0:00:35.4]} 39... Kh7 {[%clk 0:00:50.7]} 40.
Qb7 {[%clk 0:00:35.8]} 40... d4 {[%clk 0:00:45.4]} 41. exd4 {[%clk 0:00:34.1]}
41... b3 {[%clk 0:00:46]} 42. Qb6 {[%clk 0:00:24.3]} 42... Qd5 {[%clk 0:00:44]}
43. Qb7 {[%clk 0:00:15]} 43... Qc4 {[%clk 0:00:37.5]} 44. Qd7 {[%clk 0:00:09.5]}
44... Nxd4 {[%clk 0:00:34]} 45. Be5 {[%clk 0:00:07.5]} 45... Ne6 {[%clk
0:00:27.7]} 46. Qf7 {[%clk 0:00:07.6]} 46... Qd5 {[%clk 0:00:21.1]} 47. Bxg7
{[%clk 0:00:07.3]} 47... Qc6 {[%clk 0:00:07.8]} 48. Be5+ {[%clk 0:00:07]} 48...
Kh6 {[%clk 0:00:07.2]} 49. Qf6+ {[%clk 0:00:07.6]} 49... Kh7 {[%clk 0:00:07.2]}
50. Qh8+ {[%clk 0:00:07.9]} 50... Kg6 {[%clk 0:00:07.5]} 51. Qf6+ {[%clk
0:00:08.8]} 51... Kh7 {[%clk 0:00:07.1]} 52. Qf7+ {[%clk 0:00:09.5]} 52... Kh6
{[%clk 0:00:07.4]} 53. Qf6+ {[%clk 0:00:08.4]} 53... Kh7 {[%clk 0:00:07.7]}
1/2-1/2

[Event "Early-Titled-Tuesday-Blitz-July-09-2024"]
[Site "Chess.com"]
[Date "2024.07.09"]
[Round "3"]
[White "Galileo22"]
[Black "urano56"]
[Result "1-0"]
[WhiteElo "2617"]
[BlackElo "2396"]
[TimeControl "180+1"]
[EndTime "8:30:13 PDT"]
[Termination "Galileo22 won on time"]

1. e4 {[%clk 0:03:00.9]} 1... e6 {[%clk 0:02:49.8]} 2. d4 {[%clk 0:02:59.3]}
2... d5 {[%clk 0:02:50]} 3. e5 {[%clk 0:03:00.2]} 3... c5 {[%clk 0:02:49.5]} 4.
c3 {[%clk 0:03:00.7]} 4... Nc6 {[%clk 0:02:49.5]} 5. Nf3 {[%clk 0:02:59.9]} 5...
Nh6 {[%clk 0:02:49.9]} 6. Bxh6 {[%clk 0:02:32.3]} 6... gxh6 {[%clk 0:02:50.8]}
7. Be2 {[%clk 0:02:33]} 7... cxd4 {[%clk 0:02:48.3]} 8. cxd4 {[%clk 0:02:32.9]}
8... Bg7 {[%clk 0:02:49.2]} 9. O-O {[%clk 0:02:33.1]} 9... O-O {[%clk
0:02:49.4]} 10. Nc3 {[%clk 0:02:32.5]} 10... f6 {[%clk 0:02:49.5]} 11. exf6
{[%clk 0:02:29.2]} 11... Qxf6 {[%clk 0:02:49.5]} 12. Rc1 {[%clk 0:02:24.5]}
12... Bd7 {[%clk 0:02:49.1]} 13. Qd2 {[%clk 0:02:21]} 13... Kh8 {[%clk
0:02:49.4]} 14. Rfd1 {[%clk 0:02:20.1]} 14... h5 {[%clk 0:02:47.6]} 15. Qc2
{[%clk 0:02:11.4]} 15... h4 {[%clk 0:02:43.8]} 16. h3 {[%clk 0:02:10.7]} 16...
Bh6 {[%clk 0:02:25.8]} 17. Rb1 {[%clk 0:02:10.1]} 17... Rad8 {[%clk 0:02:16]}
18. Bb5 {[%clk 0:01:58.4]} 18... Rg8 {[%clk 0:02:07.4]} 19. Qe2 {[%clk 0:01:53]}
19... Rdf8 {[%clk 0:01:58.8]} 20. Bxc6 {[%clk 0:01:47.7]} 20... bxc6 {[%clk
0:01:53.4]} 21. Qe5 {[%clk 0:01:47.5]} 21... Be8 {[%clk 0:01:44.4]} 22. Qxf6+
{[%clk 0:01:46.2]} 22... Rxf6 {[%clk 0:01:45.3]} 23. Ne5 {[%clk 0:01:47.1]}
23... Bf4 {[%clk 0:01:33]} 24. Ne2 {[%clk 0:01:36.3]} 24... Bh5 {[%clk
0:01:26.2]} 25. Nxf4 {[%clk 0:01:34.8]} 25... Bxd1 {[%clk 0:01:22.9]} 26. Nfd3
{[%clk 0:01:26.8]} 26... Bf3 {[%clk 0:01:14.2]} 27. Ne1 {[%clk 0:01:19.4]} 27...
Be4 {[%clk 0:00:49.8]} 28. Rc1 {[%clk 0:01:18.3]} 28... Rb8 {[%clk 0:00:49.5]}
29. Nd7 {[%clk 0:01:13.2]} 29... Rff8 {[%clk 0:00:44.2]} 30. Nxf8 {[%clk
0:01:12.6]} 30... Rxf8 {[%clk 0:00:44.4]} 31. Rxc6 {[%clk 0:01:11.3]} 31... Rb8
{[%clk 0:00:44.8]} 32. b3 {[%clk 0:01:09.8]} 32... Rb4 {[%clk 0:00:44]} 33. Rxe6
{[%clk 0:01:05.5]} 33... Rxd4 {[%clk 0:00:44]} 34. f3 {[%clk 0:01:03.7]} 34...
Bg6 {[%clk 0:00:37.5]} 35. Ra6 {[%clk 0:01:01.4]} 35... Rd1 {[%clk 0:00:19.4]}
36. Kf2 {[%clk 0:01:00.8]} 36... Rd2+ {[%clk 0:00:20]} 37. Ke3 {[%clk
0:01:00.3]} 37... Rd1 {[%clk 0:00:18.1]} 38. Ke2 {[%clk 0:00:54]} 38... Rb1
{[%clk 0:00:18.1]} 39. Rd6 {[%clk 0:00:50.4]} 39... Rb2+ {[%clk 0:00:17.9]} 40.
Ke3 {[%clk 0:00:50.6]} 40... Bf7 {[%clk 0:00:17.2]} 41. f4 {[%clk 0:00:40]}
41... Rxa2 {[%clk 0:00:17.5]} 42. Nf3 {[%clk 0:00:39.4]} 42... Rxg2 {[%clk
0:00:16.7]} 43. Nxh4 {[%clk 0:00:39.7]} 43... Rg3+ {[%clk 0:00:16.2]} 44. Kd4
{[%clk 0:00:39.9]} 44... Rxh3 {[%clk 0:00:16.6]} 45. Nf5 {[%clk 0:00:39]} 45...
h5 {[%clk 0:00:12.7]} 46. Ke5 {[%clk 0:00:37]} 46... Rxb3 {[%clk 0:00:10.9]} 47.
Rd8+ {[%clk 0:00:32.2]} 47... Kh7 {[%clk 0:00:09.1]} 48. Rd7 {[%clk 0:00:32.8]}
48... Kg6 {[%clk 0:00:08.7]} 49. Rxa7 {[%clk 0:00:26.8]} 49... d4 {[%clk
0:00:06.4]} 50. Ra6+ {[%clk 0:00:25.3]} 50... Kh7 {[%clk 0:00:06.1]} 51. Nxd4
{[%clk 0:00:22.8]} 51... Re3+ {[%clk 0:00:04.8]} 52. Kf6 {[%clk 0:00:23.1]}
52... Bg8 {[%clk 0:00:01.9]} 53. Nf5 {[%clk 0:00:18.6]} 53... Rb3 {[%clk
0:00:01.3]} 54. Kg5 {[%clk 0:00:18.3]} 1-0

[Event "Early-Titled-Tuesday-Blitz-July-09-2024"]
[Site "Chess.com"]
[Date "2024.07.09"]
[Round "3"]
[White "ChessFighter_2011"]
[Black "gau248"]
[Result "1-0"]
[WhiteElo "2948"]
[BlackElo "2624"]
[TimeControl "180+1"]
[EndTime "8:30:14 PDT"]
[Termination "ChessFighter_2011 won by resignation"]

1. e4 {[%clk 0:03:00.9]} 1... e5 {[%clk 0:02:59.3]} 2. Nf3 {[%clk 0:03:01]} 2...
Nc6 {[%clk 0:02:59.9]} 3. Bb5 {[%clk 0:03:01]} 3... a6 {[%clk 0:03:00.2]} 4. Ba4
{[%clk 0:03:01]} 4... Nf6 {[%clk 0:03:00.7]} 5. O-O {[%clk 0:03:00.5]} 5... b5
{[%clk 0:03:00.6]} 6. Bb3 {[%clk 0:03:00.5]} 6... Bc5 {[%clk 0:03:01]} 7. d3
{[%clk 0:02:45.8]} 7... O-O {[%clk 0:02:58.6]} 8. a4 {[%clk 0:02:45.3]} 8... Rb8
{[%clk 0:02:57.4]} 9. axb5 {[%clk 0:02:44.6]} 9... axb5 {[%clk 0:02:57.5]} 10.
Nc3 {[%clk 0:02:45.1]} 10... d6 {[%clk 0:02:55.4]} 11. h3 {[%clk 0:02:35.6]}
11... h6 {[%clk 0:02:54.6]} 12. Be3 {[%clk 0:02:33.1]} 12... Nd4 {[%clk
0:02:32.9]} 13. Bxd4 {[%clk 0:02:19.9]} 13... Bxd4 {[%clk 0:02:30.4]} 14. Nxd4
{[%clk 0:02:05.7]} 14... exd4 {[%clk 0:02:31.3]} 15. Nd5 {[%clk 0:02:03.2]}
15... Nxd5 {[%clk 0:02:28.7]} 16. exd5 {[%clk 0:01:55.1]} 16... Qf6 {[%clk
0:02:28.3]} 17. Qd2 {[%clk 0:01:53.7]} 17... Bf5 {[%clk 0:02:24.9]} 18. Ra7
{[%clk 0:01:36.5]} 18... Rbc8 {[%clk 0:02:19.1]} 19. Qf4 {[%clk 0:01:30.3]}
19... g5 {[%clk 0:02:08.5]} 20. Qg3 {[%clk 0:01:28.7]} 20... Kh7 {[%clk
0:01:56]} 21. Re1 {[%clk 0:01:19.4]} 21... Bg6 {[%clk 0:01:32.2]} 22. Rb7 {[%clk
0:01:11.9]} 22... h5 {[%clk 0:01:29.7]} 23. Rxb5 {[%clk 0:01:00.4]} 23... Rfe8
{[%clk 0:01:20.7]} 24. Rf1 {[%clk 0:00:46.7]} 24... h4 {[%clk 0:01:07.8]} 25.
Qf3 {[%clk 0:00:45.1]} 25... Qxf3 {[%clk 0:00:57]} 26. gxf3 {[%clk 0:00:46]}
26... Re2 {[%clk 0:00:25.3]} 27. Rb4 {[%clk 0:00:35]} 27... Bh5 {[%clk 0:00:22]}
28. Kg2 {[%clk 0:00:18]} 28... Rce8 {[%clk 0:00:17.6]} 29. Rxd4 {[%clk
0:00:14.8]} 29... R8e5 {[%clk 0:00:17.9]} 30. f4 {[%clk 0:00:13.5]} 30... gxf4
{[%clk 0:00:18.1]} 31. Rxf4 {[%clk 0:00:14.4]} 31... Rg5+ {[%clk 0:00:18.5]} 32.
Kh2 {[%clk 0:00:15.1]} 32... Bg6 {[%clk 0:00:18.4]} 33. Rxh4+ {[%clk 0:00:15.1]}
33... Kg7 {[%clk 0:00:18.5]} 34. Rg4 {[%clk 0:00:14.9]} 34... Rh5 {[%clk
0:00:18.5]} 35. d4 {[%clk 0:00:14.1]} 35... Kh6 {[%clk 0:00:18.3]} 36. c3 {[%clk
0:00:12.7]} 36... Bf5 {[%clk 0:00:18.2]} 37. Rg3 {[%clk 0:00:12.8]} 37... Rxb2
{[%clk 0:00:17.2]} 38. Ba4 {[%clk 0:00:12.9]} 38... Rc2 {[%clk 0:00:16.6]} 39.
Be8 {[%clk 0:00:12.8]} 39... Bg6 {[%clk 0:00:15.9]} 40. Bd7 {[%clk 0:00:11.6]}
40... Rh4 {[%clk 0:00:15.3]} 41. Bg4 {[%clk 0:00:11.8]} 41... f5 {[%clk
0:00:14.9]} 42. Bd1 {[%clk 0:00:12.1]} 42... Rd2 {[%clk 0:00:15]} 43. Re3 {[%clk
0:00:11.4]} 43... f4 {[%clk 0:00:15.1]} 44. Re6 {[%clk 0:00:11.8]} 44... Kh7
{[%clk 0:00:14.6]} 45. Bg4 {[%clk 0:00:12]} 45... Bd3 {[%clk 0:00:13.4]} 46.
Rfe1 {[%clk 0:00:11.7]} 46... Rh6 {[%clk 0:00:12.2]} 47. Re7+ {[%clk 0:00:11.2]}
47... Kg8 {[%clk 0:00:12.1]} 48. Rxc7 {[%clk 0:00:11.8]} 48... Rf6 {[%clk
0:00:11.7]} 49. Re8+ {[%clk 0:00:11.9]} 49... Rf8 {[%clk 0:00:11.7]} 50. Be6+
{[%clk 0:00:12.6]} 1-0

[Event "Early-Titled-Tuesday-Blitz-July-09-2024"]
[Site "Chess.com"]
[Date "2024.07.09"]
[Round "3"]
[White "VirtualCoach"]
[Black "valik3504"]
[Result "1-0"]
[WhiteElo "2325"]
[BlackElo "2544"]
[TimeControl "180+1"]
[EndTime "8:30:15 PDT"]
[Termination "VirtualCoach won on time"]

1. e4 {[%clk 0:03:00.9]} 1... c5 {[%clk 0:02:59.2]} 2. Nf3 {[%clk 0:03:00.5]}
2... e6 {[%clk 0:02:57.6]} 3. d4 {[%clk 0:03:00.3]} 3... cxd4 {[%clk 0:02:58.5]}
4. Nxd4 {[%clk 0:03:00.3]} 4... a6 {[%clk 0:02:58.8]} 5. Bd3 {[%clk 0:02:59.2]}
5... Bc5 {[%clk 0:02:56.1]} 6. Nb3 {[%clk 0:02:59.1]} 6... Ba7 {[%clk 0:02:55]}
7. Qg4 {[%clk 0:02:57.1]} 7... Nf6 {[%clk 0:02:51.2]} 8. Qxg7 {[%clk 0:02:36.7]}
8... Rg8 {[%clk 0:02:50.9]} 9. Qh6 {[%clk 0:02:36.2]} 9... Bxf2+ {[%clk
0:02:51.5]} 10. Kf1 {[%clk 0:02:30.2]} 10... Ba7 {[%clk 0:02:15.7]} 11. Bg5
{[%clk 0:02:20]} 11... Rg6 {[%clk 0:02:08.8]} 12. Qh4 {[%clk 0:02:18.1]} 12...
h6 {[%clk 0:01:55.3]} 13. Bd2 {[%clk 0:02:13.1]} 13... Qb6 {[%clk 0:01:43.6]}
14. e5 {[%clk 0:02:02.6]} 14... Ng4 {[%clk 0:01:23]} 15. Bxg6 {[%clk 0:01:55.4]}
15... fxg6 {[%clk 0:01:23.9]} 16. Nc3 {[%clk 0:01:49.7]} 16... Nc6 {[%clk
0:01:16.9]} 17. Na4 {[%clk 0:01:47.8]} 17... Qb5+ {[%clk 0:01:16.8]} 18. Ke1
{[%clk 0:01:24]} 18... Bf2+ {[%clk 0:00:49.6]} 19. Qxf2 {[%clk 0:01:23.3]} 19...
Nxf2 {[%clk 0:00:50.5]} 20. Kxf2 {[%clk 0:01:24]} 20... Qxa4 {[%clk 0:00:50.2]}
21. Rhf1 {[%clk 0:01:21.7]} 21... b6 {[%clk 0:00:46.3]} 22. Kg1 {[%clk
0:01:21.4]} 22... Bb7 {[%clk 0:00:46.6]} 23. Bxh6 {[%clk 0:01:20.3]} 23... O-O-O
{[%clk 0:00:46.4]} 24. Rf4 {[%clk 0:01:20.2]} 24... Qb5 {[%clk 0:00:45.6]} 25.
c4 {[%clk 0:01:20.1]} 25... Qxe5 {[%clk 0:00:44.6]} 26. Raf1 {[%clk 0:01:17.5]}
26... Qxb2 {[%clk 0:00:40.8]} 27. R4f2 {[%clk 0:01:16.2]} 27... Qe5 {[%clk
0:00:35.1]} 28. Bf4 {[%clk 0:01:15.6]} 28... Qe4 {[%clk 0:00:34.4]} 29. Bd6
{[%clk 0:01:15.7]} 29... Nd4 {[%clk 0:00:31.5]} 30. Nd2 {[%clk 0:01:03.8]} 30...
Qg4 {[%clk 0:00:26.2]} 31. h3 {[%clk 0:01:00.8]} 31... Ne2+ {[%clk 0:00:17.5]}
32. Kh2 {[%clk 0:00:55.3]} 32... Qd4 {[%clk 0:00:18]} 33. Rxe2 {[%clk
0:00:26.4]} 33... Qxd6+ {[%clk 0:00:17.5]} 34. Kh1 {[%clk 0:00:26.5]} 34... Qd3
{[%clk 0:00:12.5]} 35. Ref2 {[%clk 0:00:26.7]} 35... Qxh3+ {[%clk 0:00:12.3]}
36. Kg1 {[%clk 0:00:26.2]} 36... Qh6 {[%clk 0:00:12.1]} 37. Nb3 {[%clk
0:00:24.7]} 37... Rh8 {[%clk 0:00:12]} 38. Rf4 {[%clk 0:00:20.4]} 38... Qh1+
{[%clk 0:00:11]} 39. Kf2 {[%clk 0:00:21.3]} 39... Qxg2+ {[%clk 0:00:10.3]} 40.
Ke1 {[%clk 0:00:22.2]} 40... Rh2 {[%clk 0:00:08.9]} 41. R1f2 {[%clk 0:00:22]}
41... Qg1+ {[%clk 0:00:07.6]} 42. Ke2 {[%clk 0:00:22.9]} 42... Rh1 {[%clk
0:00:05.9]} 43. Rf1 {[%clk 0:00:22]} 43... Qh2+ {[%clk 0:00:03.7]} 44. R4f2
{[%clk 0:00:22.2]} 44... Qh5+ {[%clk 0:00:03.8]} 45. Ke1 {[%clk 0:00:22.3]}
45... Rxf1+ {[%clk 0:00:03.5]} 46. Rxf1 {[%clk 0:00:22.8]} 46... Qe5+ {[%clk
0:00:04.2]} 47. Kd2 {[%clk 0:00:22.9]} 47... Qb2+ {[%clk 0:00:04.9]} 48. Kd3
{[%clk 0:00:22.5]} 48... Qxa2 {[%clk 0:00:04.1]} 49. Nd4 {[%clk 0:00:23.1]}
49... Qa3+ {[%clk 0:00:04.6]} 50. Kd2 {[%clk 0:00:21.7]} 50... Be4 {[%clk
0:00:04.9]} 51. Rf8+ {[%clk 0:00:20.7]} 1-0